Workbook

Sheet Mondtag u. Hochw.
A1: Tabelle 1 Meridiandurchgänge des Mondes und Hochwasser
A2: Libreville (λ = 9° 27' Ost) Juni 2009
A3: Zeitangaben in MEZ | H3: Abweichung
A4: Tag | B4: Meridian- | C4: Dauer | D4: Hochwasser | E4: Zeit zwischen | F4: Zeit- | G4: Abweichung | H4: der Hochw.-
A5: Nr. | B5: durchgang Mond | C5: des Mond- | D5: (jedes zweite) | E5: den Hoch- | F5: unterschied | G5: der Mondtage | H5: Periode vom
B6: für λ = 10° Ost | C6: tages (h) | E6: wassern (h) | F6: D - B (h) | G6: vom Mittel (h) | H6: Mittel (h)
A7: =1+19/24+38/(24*60) -> 1.818055556 | B7: 2009-06-01T19:38:00 | D7: 2009-06-02T00:59:00 | F7: =(D7-B7)*24 -> 5.35
A8: =A7+1.035 -> 2.853055556 | B8: 2009-06-02T20:23:00 | C8: =(B8-B7)*24 -> 24.75 | D8: 2009-06-03T02:08:00 | E8: =(D8-D7)*24 -> 25.15 | F8: =(D8-B8)*24 -> 5.75 | G8: =C8-$C$36 -> -0.08869047619 | H8: =E8-$C$36 -> 0.3113095237
A9: =A8+1.035 -> 3.888055556 | B9: 2009-06-03T21:09:00 | C9: =(B9-B8)*24 -> 24.76666667 | D9: 2009-06-04T03:05:00 | E9: =(D9-D8)*24 -> 24.95 | F9: =(D9-B9)*24 -> 5.933333333 | G9: -0.07202380964 | H9: 0.1113095238
A10: 4.923055556 | B10: 2009-06-04T21:57:00 | C10: 24.8 | D10: 2009-06-05T03:50:00 | E10: =(D10-D9)*24 -> 24.75 | F10: 5.883333333 | G10: -0.0386904762 | H10: -0.08869047619
A11: 5.958055556 | B11: 2009-06-05T22:46:00 | C11: 24.81666667 | D11: 2009-06-06T04:26:00 | E11: 24.6 | F11: 5.666666667 | G11: -0.02202380948 | H11: -0.2386904762
A12: 6.993055556 | B12: 2009-06-06T23:37:00 | C12: 24.85 | D12: 2009-06-07T05:02:00 | E12: 24.6 | F12: 5.416666667 | G12: 0.01130952379 | H12: -0.2386904762
A13: 8.028055556 | B13: 2009-06-08T00:28:00 | C13: 24.85 | D13: 2009-06-08T05:41:00 | E13: 24.65 | F13: 5.216666667 | G13: 0.01130952379 | H13: -0.1886904762
A14: 9.063055556 | B14: 2009-06-09T01:20:00 | C14: 24.86666667 | D14: 2009-06-09T06:20:00 | E14: 24.65 | F14: 5 | G14: 0.02797619051 | H14: -0.1886904762
A15: 10.09805556 | B15: 2009-06-10T02:09:00 | C15: 24.81666667 | D15: 2009-06-10T06:56:00 | E15: 24.6 | F15: 4.783333333 | G15: -0.02202380948 | H15: -0.2386904762
A16: 11.13305556 | B16: 2009-06-11T02:57:00 | C16: 24.8 | D16: 2009-06-11T07:29:00 | E16: 24.55 | F16: 4.533333333 | G16: -0.0386904762 | H16: -0.2886904763
A17: 12.16805556 | B17: 2009-06-12T03:42:00 | C17: 24.75 | D17: 2009-06-12T08:02:00 | E17: 24.55 | F17: 4.333333333 | G17: -0.08869047619 | H17: -0.2886904761
A18: 13.20305556 | B18: 2009-06-13T04:25:00 | C18: 24.71666667 | D18: 2009-06-13T08:43:00 | E18: 24.68333333 | F18: 4.3 | G18: -0.1220238095 | H18: -0.1553571429
A19: 14.23805556 | B19: 2009-06-14T05:06:00 | C19: 24.68333333 | D19: 2009-06-14T09:32:00 | E19: 24.81666667 | F19: 4.433333333 | G19: -0.1553571429 | H19: -0.02202380948
A20: 15.27305556 | B20: 2009-06-15T05:48:00 | C20: 24.7 | D20: 2009-06-15T10:25:00 | E20: 24.88333333 | F20: 4.616666667 | G20: -0.1386904762 | H20: 0.04464285723
A21: 16.30805556 | B21: 2009-06-16T06:30:00 | C21: 24.7 | D21: 2009-06-16T11:22:00 | E21: 24.95 | F21: 4.866666667 | G21: -0.1386904762 | H21: 0.1113095238
A22: 17.34305556 | B22: 2009-06-17T07:14:00 | C22: 24.73333333 | D22: 2009-06-17T12:20:00 | E22: 24.96666667 | F22: 5.1 | G22: -0.1053571429 | H22: 0.1279761905
A23: 18.37805556 | B23: 2009-06-18T08:01:00 | C23: 24.78333333 | D23: 2009-06-18T13:18:00 | E23: 24.96666667 | F23: 5.283333333 | G23: -0.05535714292 | H23: 0.1279761905
A24: 19.41305556 | B24: 2009-06-19T08:53:00 | C24: 24.86666667 | D24: 2009-06-19T14:12:00 | E24: 24.9 | F24: 5.316666667 | G24: 0.02797619051 | H24: 0.06130952378
A25: 20.44805556 | B25: 2009-06-20T09:51:00 | C25: 24.96666667 | D25: 2009-06-20T15:03:00 | E25: 24.85 | F25: 5.2 | G25: 0.1279761905 | H25: 0.01130952379
A26: 21.48305556 | B26: 2009-06-21T10:54:00 | C26: 25.05 | D26: 2009-06-21T15:53:00 | E26: 24.83333333 | F26: 4.983333333 | G26: 0.2113095239 | H26: -0.005357142756
A27: 22.51805556 | B27: 2009-06-22T12:00:00 | C27: 25.1 | D27: 2009-06-22T16:43:00 | E27: 24.83333333 | F27: 4.716666667 | G27: 0.2613095237 | H27: -0.005357142931
A28: 23.55305556 | B28: 2009-06-23T13:05:00 | C28: 25.08333333 | D28: 2009-06-23T17:34:00 | E28: 24.85 | F28: 4.483333333 | G28: 0.2446428572 | H28: 0.01130952379
A29: 24.58805556 | B29: 2009-06-24T14:08:00 | C29: 25.05 | D29: 2009-06-24T18:25:00 | E29: 24.85 | F29: 4.283333333 | G29: 0.2113095237 | H29: 0.01130952379
A30: 25.62305556 | B30: 2009-06-25T15:06:00 | C30: 24.96666667 | D30: 2009-06-25T19:16:00 | E30: 24.85 | F30: 4.166666667 | G30: 0.1279761905 | H30: 0.01130952379
A31: 26.65805556 | B31: 2009-06-26T15:59:00 | C31: 24.88333333 | D31: 2009-06-26T20:08:00 | E31: 24.86666667 | F31: 4.15 | G31: 0.04464285723 | H31: 0.02797619051
A32: 27.69305556 | B32: 2009-06-27T16:48:00 | C32: 24.81666667 | D32: 2009-06-27T21:00:00 | E32: 24.86666667 | F32: 4.2 | G32: -0.02202380965 | H32: 0.02797619051
A33: 28.72805556 | B33: 2009-06-28T17:35:00 | C33: 24.78333333 | D33: 2009-06-28T21:55:00 | E33: 24.91666667 | F33: 4.333333333 | G33: -0.05535714274 | H33: 0.0779761905
A34: 29.76305556 | B34: 2009-06-29T18:21:00 | C34: 24.76666667 | D34: 2009-06-29T22:59:00 | E34: 25.06666667 | F34: 4.633333333 | G34: -0.07202380964 | H34: 0.2279761905
A35: 30.79805556 | B35: 2009-06-30T19:07:00 | C35: 24.76666667 | D35: 2009-07-01T00:21:00 | E35: 25.36666667 | F35: 5.233333333 | G35: -0.07202380947 | H35: 0.5279761904
B36: Mittelwerte | C36: =AVERAGE(C8:C35) -> 24.83869048 | E36: =AVERAGE(E8:E35) -> 24.83452381 | F36: =AVERAGE(F7:F35) -> 4.902298851
B37: über 28 Tage: | C37: (24 h | D37: =(C36-24)*60 -> 50.32142857 | E37: (24 h | F37: =(E36-24)*60 -> 50.07142857
D38: min) | F38: min)

Sheet Gezeitenbeschleunigung
B2: Tabelle 2 Vektoren der Gezeitenbeschleunigung (nur Mondeinfluss)
F3: rM = | G3: 384400000 | H3: m, G = | I3: 6.67e-11 | J3: m3/(kg s2)
D4: mM = | E4: 7.35e+22 | F4: kg, RE = | G4: 6378000 | H4: m, a0 = | I4: =2*$I$3*$E$4*$G$4/($G$3)^3 -> 1.100975226e-06 | J4: m/s2
B5: ϑ | C5: xM | D5: yM | E5: ax (m/s2) | F5: ay (m/s2) | G5: ax· 400000 | H5: ay· 400000 | I5: Pfeilspitzen
B6: 0 | C6: =14*COS(B6) -> 14 | D6: =14*SIN(B6) -> 0 | E6: =$I$4*COS(B6) -> 1.100975226e-06 | F6: =-0.5*$I$4*SIN(B6) -> 0 | G6: =E6*4000000 -> 4.403900903 | H6: =F6*4000000 -> 0 | I6: =C6+G6 -> 18.4039009 | J6: =D6+H6 -> 0
B7: =B6+PI()/20 -> 0.1570796327 | C7: =14*COS(B7) -> 13.82763677 | D7: =14*SIN(B7) -> 2.190082511 | E7: 1.087420394e-06 | F7: -8.611523524e-08 | G7: =E7*4000000 -> 4.349681575 | H7: -0.344460941
B8: =B7+PI()/20 -> 0.3141592654 | C8: 13.31479123 | D8: 4.326237921 | E8: 1.047089663e-06 | F8: -1.701100276e-07 | G8: 4.188358651 | H8: -0.6804401103 | I8: =C8+G8 -> 17.50314988 | J8: =D8+H8 -> 3.645797811
B9: 0.471238898 | C9: 12.47409134 | D9: 6.355866996 | E9: 9.809761092e-07 | F9: -2.499161465e-07 | G9: 3.923904437 | H9: -0.999664586
B10: 0.6283185307 | C10: 11.32623792 | D10: 8.228993532 | E10: 8.907076681e-07 | F10: -3.235685004e-07 | G10: 3.562830672 | H10: -1.294274002 | I10: =C10+G10 -> 14.88906859 | J10: 6.93471953
B11: 0.7853981634 | C11: 9.899494937 | D11: 9.899494937 | E11: 7.785070481e-07 | F11: -3.892535241e-07 | G11: 3.114028192 | H11: -1.557014096
B12: 0.9424777961 | C12: 8.228993532 | D12: 11.32623792 | E12: 6.471370009e-07 | F12: -4.45353834e-07 | G12: 2.588548004 | H12: -1.781415336 | I12: =C12+G12 -> 10.81754154 | J12: 9.544822585
B13: 1.099557429 | C13: 6.355866996 | D13: 12.47409134 | E13: 4.99832293e-07 | F13: -4.904880546e-07 | G13: 1.999329172 | H13: -1.961952218
B14: 1.256637061 | C14: 4.326237921 | D14: 13.31479123 | E14: 3.402200552e-07 | F14: -5.235448314e-07 | G14: 1.360880221 | H14: -2.094179326 | I14: =C14+G14 -> 5.687118142 | J14: 11.2206119
B15: 1.413716694 | C15: 2.190082511 | D15: 13.82763677 | E15: 1.722304705e-07 | F15: -5.437101969e-07 | G15: 0.6889218819 | H15: -2.174840788
B16: 1.570796327 | C16: 8.576039184e-16 | D16: 14 | E16: 6.744290484e-23 | F16: -5.504876129e-07 | G16: 2.697716194e-16 | H16: -2.201950452 | I16: =C16+G16 -> 1.127375538e-15 | J16: 11.79804955
B17: 1.727875959 | C17: -2.190082511 | D17: 13.82763677 | E17: -1.722304705e-07 | F17: -5.437101969e-07 | G17: -0.6889218819 | H17: -2.174840788
B18: 1.884955592 | C18: -4.326237921 | D18: 13.31479123 | E18: -3.402200552e-07 | F18: -5.235448314e-07 | G18: -1.360880221 | H18: -2.094179326 | I18: =C18+G18 -> -5.687118142 | J18: 11.2206119
B19: 2.042035225 | C19: -6.355866996 | D19: 12.47409134 | E19: -4.99832293e-07 | F19: -4.904880546e-07 | G19: -1.999329172 | H19: -1.961952218
B20: 2.199114858 | C20: -8.228993532 | D20: 11.32623792 | E20: -6.471370009e-07 | F20: -4.45353834e-07 | G20: -2.588548004 | H20: -1.781415336 | I20: =C20+G20 -> -10.81754154 | J20: 9.544822585
B21: 2.35619449 | C21: -9.899494937 | D21: 9.899494937 | E21: -7.785070481e-07 | F21: -3.892535241e-07 | G21: -3.114028192 | H21: -1.557014096
B22: 2.513274123 | C22: -11.32623792 | D22: 8.228993532 | E22: -8.907076681e-07 | F22: -3.235685004e-07 | G22: -3.562830672 | H22: -1.294274002 | I22: =C22+G22 -> -14.88906859 | J22: 6.93471953
B23: 2.670353756 | C23: -12.47409134 | D23: 6.355866996 | E23: -9.809761092e-07 | F23: -2.499161465e-07 | G23: -3.923904437 | H23: -0.999664586
B24: 2.827433388 | C24: -13.31479123 | D24: 4.326237921 | E24: -1.047089663e-06 | F24: -1.701100276e-07 | G24: -4.188358651 | H24: -0.6804401103 | I24: =C24+G24 -> -17.50314988 | J24: 3.645797811
B25: 2.984513021 | C25: -13.82763677 | D25: 2.190082511 | E25: -1.087420394e-06 | F25: -8.611523524e-08 | G25: -4.349681575 | H25: -0.344460941
B26: 3.141592654 | C26: -14 | D26: 1.715207837e-15 | E26: -1.100975226e-06 | F26: -6.744290484e-23 | G26: -4.403900903 | H26: -2.697716194e-16 | I26: =C26+G26 -> -18.4039009 | J26: 1.445436218e-15
B27: 3.298672286 | C27: -13.82763677 | D27: -2.190082511 | E27: -1.087420394e-06 | F27: 8.611523524e-08 | G27: -4.349681575 | H27: 0.344460941
B28: 3.455751919 | C28: -13.31479123 | D28: -4.326237921 | E28: -1.047089663e-06 | F28: 1.701100276e-07 | G28: -4.188358651 | H28: 0.6804401103 | I28: =C28+G28 -> -17.50314988 | J28: -3.645797811
B29: 3.612831552 | C29: -12.47409134 | D29: -6.355866996 | E29: -9.809761092e-07 | F29: 2.499161465e-07 | G29: -3.923904437 | H29: 0.999664586
B30: 3.769911184 | C30: -11.32623792 | D30: -8.228993532 | E30: -8.907076681e-07 | F30: 3.235685004e-07 | G30: -3.562830672 | H30: 1.294274002 | I30: =C30+G30 -> -14.88906859 | J30: -6.93471953
B31: 3.926990817 | C31: -9.899494937 | D31: -9.899494937 | E31: -7.785070481e-07 | F31: 3.892535241e-07 | G31: -3.114028192 | H31: 1.557014096
B32: 4.08407045 | C32: -8.228993532 | D32: -11.32623792 | E32: -6.471370009e-07 | F32: 4.45353834e-07 | G32: -2.588548004 | H32: 1.781415336 | I32: =C32+G32 -> -10.81754154 | J32: -9.544822585
B33: 4.241150082 | C33: -6.355866996 | D33: -12.47409134 | E33: -4.99832293e-07 | F33: 4.904880546e-07 | G33: -1.999329172 | H33: 1.961952218
B34: 4.398229715 | C34: -4.326237921 | D34: -13.31479123 | E34: -3.402200552e-07 | F34: 5.235448314e-07 | G34: -1.360880221 | H34: 2.094179326 | I34: =C34+G34 -> -5.687118142 | J34: -11.2206119
B35: 4.555309348 | C35: -2.190082511 | D35: -13.82763677 | E35: -1.722304705e-07 | F35: 5.437101969e-07 | G35: -0.6889218819 | H35: 2.174840788
B36: 4.71238898 | C36: -2.572811755e-15 | D36: -14 | E36: -2.023287145e-22 | F36: 5.504876129e-07 | G36: -8.093148581e-16 | H36: 2.201950452 | I36: =C36+G36 -> -3.382126613e-15 | J36: -11.79804955
B37: 4.869468613 | C37: 2.190082511 | D37: -13.82763677 | E37: 1.722304705e-07 | F37: 5.437101969e-07 | G37: 0.6889218819 | H37: 2.174840788
B38: 5.026548246 | C38: 4.326237921 | D38: -13.31479123 | E38: 3.402200552e-07 | F38: 5.235448314e-07 | G38: 1.360880221 | H38: 2.094179326 | I38: =C38+G38 -> 5.687118142 | J38: -11.2206119
B39: 5.183627878 | C39: 6.355866996 | D39: -12.47409134 | E39: 4.99832293e-07 | F39: 4.904880546e-07 | G39: 1.999329172 | H39: 1.961952218
B40: 5.340707511 | C40: 8.228993532 | D40: -11.32623792 | E40: 6.471370009e-07 | F40: 4.45353834e-07 | G40: 2.588548004 | H40: 1.781415336 | I40: =C40+G40 -> 10.81754154 | J40: -9.544822585
B41: 5.497787144 | C41: 9.899494937 | D41: -9.899494937 | E41: 7.785070481e-07 | F41: 3.892535241e-07 | G41: 3.114028192 | H41: 1.557014096
B42: 5.654866776 | C42: 11.32623792 | D42: -8.228993532 | E42: 8.907076681e-07 | F42: 3.235685004e-07 | G42: 3.562830672 | H42: 1.294274002 | I42: =C42+G42 -> 14.88906859 | J42: -6.93471953
B43: 5.811946409 | C43: 12.47409134 | D43: -6.355866996 | E43: 9.809761092e-07 | F43: 2.499161465e-07 | G43: 3.923904437 | H43: 0.999664586
B44: 5.969026042 | C44: 13.31479123 | D44: -4.326237921 | E44: 1.047089663e-06 | F44: 1.701100276e-07 | G44: 4.188358651 | H44: 0.6804401103 | I44: =C44+G44 -> 17.50314988 | J44: -3.645797811
B45: 6.126105675 | C45: 13.82763677 | D45: -2.190082511 | E45: 1.087420394e-06 | F45: 8.611523524e-08 | G45: 4.349681575 | H45: 0.344460941
B46: 6.283185307 | C46: 14 | D46: -3.430415674e-15 | E46: 1.100975226e-06 | F46: 1.348858097e-22 | G46: 4.403900903 | H46: 5.395432387e-16 | I46: =C46+G46 -> 18.4039009 | J46: -2.890872435e-15
F48: x | G48: y
F49: 0 | G49: 0

Sheet Wasserstände
A2: Tabelle 3 Gezeiten in Libreville
A3: (l = 9° 27' Ost) Januar 2009
A4: Zeit | B4: Wasser- | C4: Mittel (m)
A5: (d) | B5: stand (m) | C5: Hochw. | D5: Niedrigw.
A6: =21/(60*24) -> 0.01458333333 | B6: 1.49 | C6: =(B6+B8)/2 -> 1.615
A7: =A6+0.24*24.85/24 -> 0.2630833333 | B7: 0.69 | D7: =(B7+B9)/2 -> 0.69
A8: =A7+0.24*24.85/24 -> 0.5115833333 | B8: 1.74 | C8: =(B8+B10)/2 -> 1.605
A9: 0.7600833333 | B9: 0.69 | D9: =(B9+B11)/2 -> 0.725
A10: 1.008583333 | B10: 1.47 | C10: 1.585
A11: 1.257083333 | B11: 0.76 | D11: =(B11+B13)/2 -> 0.7
A12: 1.505583333 | B12: 1.7 | C12: 1.595
A13: 1.754083333 | B13: 0.64 | D13: =(B13+B15)/2 -> 0.705
A14: 2.002583333 | B14: 1.49 | C14: 1.585
A15: 2.251083333 | B15: 0.77 | D15: =(B15+B17)/2 -> 0.665
A16: 2.499583333 | B16: 1.68 | C16: 1.61
A17: 2.748083333 | B17: 0.56 | D17: =(B17+B19)/2 -> 0.655
A18: 2.996583333 | B18: 1.54 | C18: 1.61
A19: 3.245083333 | B19: 0.75 | D19: =(B19+B21)/2 -> 0.62
A20: 3.493583333 | B20: 1.68 | C20: 1.635
A21: 3.742083333 | B21: 0.49 | D21: =(B21+B23)/2 -> 0.605
A22: 3.990583333 | B22: 1.59 | C22: 1.65
A23: 4.239083333 | B23: 0.72 | D23: =(B23+B25)/2 -> 0.575
A24: 4.487583333 | B24: 1.71 | C24: 1.685
A25: 4.736083333 | B25: 0.43 | D25: =(B25+B27)/2 -> 0.555
A26: 4.984583333 | B26: 1.66 | C26: 1.71
A27: 5.233083333 | B27: 0.68 | D27: =(B27+B29)/2 -> 0.53 | F27: Mittel-Linie
A28: 5.481583333 | B28: 1.76 | C28: 1.745 | F28: x | G28: y
A29: 5.730083333 | B29: 0.38 | D29: =(B29+B31)/2 -> 0.51 | F29: 0.1 | G29: 1.17
A30: 5.978583333 | B30: 1.73 | C30: 1.765 | F30: 30.5 | G30: 1.17
A31: 6.227083333 | B31: 0.64 | D31: =(B31+B33)/2 -> 0.495
A32: 6.475583333 | B32: 1.8 | C32: 1.79
A33: 6.724083333 | B33: 0.35 | D33: =(B33+B35)/2 -> 0.475
A34: 6.972583333 | B34: 1.78 | C34: 1.81
A35: 7.221083333 | B35: 0.6 | D35: =(B35+B37)/2 -> 0.465
A36: 7.469583333 | B36: 1.84 | C36: 1.83 | F36: S I M U L A T I O N
A37: 7.718083333 | B37: 0.33 | D37: =(B37+B39)/2 -> 0.46 | F37: Mittel bei | G37: 0 | H37: m
A38: 7.966583333 | B38: 1.82 | C38: 1.835 | F38: Zeitschritt: | G38: 0.05 | H38: d | I38: 1 Mondtag = | J38: 1.03505 | K38: d | L38: 1 Sterntag = | M38: =1-3/(60*24)-56.56/(3600*24) -> 0.997262037 | N38: d | O38: Sid. Monat: | P38: =327.86/12 -> 27.32166667 | Q38: d
A39: 8.215083333 | B39: 0.59 | D39: =(B39+B41)/2 -> 0.455 | F39: M2-Tide | G39: =J38*0.5 -> 0.517525 | H39: halber Mondtag | I39: S2-Tide | J39: 0.5 | K39: halber Sonnent. | L39: K1-Tide | M39: =M38 -> 0.997262037 | N39: ganzer Sternt. | O39: N2-Tide | P39: 0.5274167 | Q39: ellipt.Tide
A40: 8.463583333 | B40: 1.85 | C40: 1.85 | F40: ω1 = | G40: =2*PI()/G39 -> 12.14083437 | H40: d-1 | I40: ω2 = | J40: =2*PI()/J39 -> 12.56637061 | K40: d-1 | L40: ω3 = | M40: =2*PI()/M39 -> 6.300435667 | N40: d-1 | O40: ω4 = | P40: =2*PI()/P39 -> 11.91313303 | Q40: d-1
A41: 8.712083333 | B41: 0.32 | D41: =(B41+B43)/2 -> 0.46 | F41: A1 = | G41: 1 | H41: m | I41: A2 = | J41: 0.3 | K41: m | L41: A3 = | M41: 0.1 | N41: m | O41: A4 = | P41: 0.2 | Q41: m
A42: 8.960583333 | B42: 1.85 | C42: 1.85 | F42: Phase: | G42: 0 | I42: Phase: | J42: 0 | L42: Phase: | M42: 0.247 | O42: Phase: | P42: 0.3
A43: 9.209083333 | B43: 0.6 | D43: =(B43+B45)/2 -> 0.475 | F43: t (d) | G43: S2 | H43: M2 | I43: M2 + S2 | J43: K1 | K43: M2 + S2 + K1 | L43: N2 | M43: M2+S2+N2+K1
A44: 9.457583333 | B44: 1.85 | C44: 1.855 | F44: 0 | G44: =$J$41*SIN($J$40*F44+$J$42) -> 0 | H44: =$G$41*SIN($G$40*F44+$G$42) -> 0 | I44: =G44+H44 -> 0 | J44: =$M$41*SIN($M$40*F44+$M$42) -> 0.0244496113 | K44: =I44+J44 -> 0.0244496113 | L44: =$P$41*SIN($P$40*F44+$P$42) -> 0.05910404133 | M44: =I44+L44+J44 -> 0.08355365264
A45: 9.706083333 | B45: 0.35 | D45: =(B45+B47)/2 -> 0.49 | F45: =F44+$G$38 -> 0.05 | G45: 0.1763355757 | H45: =$G$41*SIN($G$40*F45+$G$42) -> 0.5704402074 | I45: =G45+H45 -> 0.746775783 | J45: 0.05328980774 | K45: 0.8000655908 | L45: 0.1561239321 | M45: =I45+L45+J45 -> 0.9561895229
A46: 9.954583333 | B46: 1.86 | C46: 1.845 | F46: 0.1 | G46: 0.2853169549 | H46: 0.9370497296 | I46: 1.222366684 | J46: 0.07688518184 | K46: 1.299251866 | L46: 0.1993685774 | M46: =I46+L46+J46 -> 1.498620444
A47: 10.20308333 | B47: 0.63 | D47: =(B47+B49)/2 -> 0.51 | F47: 0.15 | G47: 0.2853169549 | H47: 0.9688310158 | I47: 1.254147971 | J47: 0.09291345944 | K47: 1.34706143 | L47: 0.1739428142 | M47: 1.521004244
A48: 10.45158333 | B48: 1.83 | C48: 1.845 | F48: 0.2 | G48: 0.1763355757 | H48: 0.6544279217 | I48: 0.8307634974 | J48: 0.09979712557 | K48: 0.9305606229 | L48: 0.08860427898 | M48: 1.019164902
A49: 10.70008333 | B49: 0.39 | D49: =(B49+B51)/2 -> 0.525 | F49: 0.25 | G49: 3.675445365e-17 | H49: 0.1061835065 | I49: 0.1061835065 | J49: 0.09685868472 | K49: 0.2030421913 | L49: -0.0272530677 | M49: 0.1757891236
A50: 10.94858333 | B50: 1.86 | C50: 1.82 | F50: 0.3 | G50: -0.1763355757 | H50: -0.4800025835 | I50: -0.6563381592 | J50: 0.08438734042 | K50: -0.5719508187 | L50: -0.133723382 | M50: -0.7056742008
A51: 11.19708333 | B51: 0.66 | D51: =(B51+B53)/2 -> 0.525 | F51: 0.35 | G51: -0.2853169549 | H51: -0.8946733171 | I51: -1.179990272 | J51: 0.0636105316 | K51: -1.11637974 | L51: -0.1941340846 | M51: -1.310513825
A52: 11.44558333 | B52: 1.78 | C52: 1.82 | F52: 0.4 | G52: -0.2853169549 | H52: -0.989657828 | I52: -1.274974783 | J52: 0.03657312718 | K52: -1.238401656 | L52: -0.1876773446 | M52: -1.426079
A53: 11.69408333 | B53: 0.39 | D53: =(B53+B55)/2 -> 0.525 | F53: 0.45 | G53: -0.1763355757 | H53: -0.7310160859 | I53: -0.9073516616 | J53: 0.005936168497 | K53: -0.9014154931 | L53: -0.1165771182 | M53: -1.017992611
A54: 11.94258333 | B54: 1.86 | C54: 1.82 | F54: 0.5 | G54: -3.399624332e-16 | H54: -0.2111664069 | I54: -0.2111664069 | J54: -0.02528503228 | K54: -0.2364514392 | L54: -0.005323130168 | M54: -0.2417745694
A55: 12.19108333 | B55: 0.66 | D55: =(B55+B57)/2 -> 0.555 | F55: 0.55 | G55: 0.1763355757 | H55: 0.3841376191 | I55: 0.5604731948 | J55: -0.05401766146 | K55: 0.5064555333 | L55: 0.107764354 | M55: 0.6142198873
A56: 12.43958333 | B56: 1.78 | C56: 1.815 | F56: 0.6 | G56: 0.2853169549 | H56: 0.8421809242 | I56: 1.127497879 | J56: -0.07743383241 | K56: 1.050064047 | L56: 0.1837335404 | M56: 1.233797587
A57: 12.68808333 | B57: 0.45 | D57: =(B57+B59)/2 -> 0.57 | F57: 0.65 | G57: 0.2853169549 | H57: 0.9992946796 | I57: 1.284611634 | J57: -0.09322890825 | K57: 1.191382726 | L57: 0.1964176423 | M57: 1.387800369
A58: 12.93658333 | B58: 1.85 | C58: 1.775 | F58: 0.7 | G58: 0.1763355757 | H58: 0.7993387254 | I58: 0.975674301 | J58: -0.09984832593 | K58: 0.8758259751 | L58: 0.1414477542 | M58: 1.017273729
A59: 13.18508333 | B59: 0.69 | D59: =(B59+B61)/2 -> 0.605 | F59: 0.75 | G59: -4.226436909e-16 | H59: 0.3137616702 | I59: 0.3137616702 | J59: -0.09664059745 | K59: 0.2171210728 | L59: 0.03775767562 | M59: 0.2548787484
A60: 13.43358333 | B60: 1.7 | C60: 1.76 | F60: 0.8 | G60: -0.1763355757 | H60: -0.2839292496 | I60: -0.4602648253 | J60: -0.08392142982 | K60: -0.5441862551 | L60: -0.07893763701 | M60: -0.6231238921
A61: 13.68208333 | B61: 0.52 | D61: =(B61+B63)/2 -> 0.61 | F61: 0.85 | G61: -0.2853169549 | H61: -0.7801660771 | I61: -1.065483032 | J61: -0.06294265295 | K61: -1.128425685 | L61: -0.1684437112 | M61: -1.296869396
A62: 13.93058333 | B62: 1.82 | C62: 1.715 | F62: 0.9 | G62: -0.2853169549 | H62: -0.9976326076 | I62: -1.282949562 | J62: -0.03576901358 | K62: -1.318718576 | L62: -0.1999311217 | M62: -1.518649698
A63: 14.17908333 | B63: 0.7 | D63: =(B63+B65)/2 -> 0.65 | F63: 0.95 | G63: -0.1763355757 | H63: -0.858623323 | I63: -1.034958899 | J63: -0.005074961407 | K63: -1.04003386 | L63: -0.1625543611 | M63: -1.202588221
A64: 14.42758333 | B64: 1.61 | C64: 1.7 | F64: 1 | G64: 9.187962891e-16 | H64: -0.4128092621 | I64: -0.4128092621 | J64: 0.02611857222 | K64: -0.3866906899 | L64: -0.06918746146 | M64: -0.4558781513
A65: 14.67608333 | B65: 0.6 | D65: =(B65+B67)/2 -> 0.645 | F65: 1.05 | G65: 0.1763355757 | H65: 0.1805105209 | I65: 0.3568460966 | J65: 0.05474149664 | K65: 0.4115875932 | L65: 0.04801033125 | M65: 0.4595979245
A66: 14.92458333 | B66: 1.79 | C66: 1.66 | F66: 1.1 | G66: 0.2853169549 | H66: 0.7093299712 | I66: 0.9946469261 | J66: 0.07797672243 | K66: 1.072623649 | L66: 0.1486714706 | M66: 1.221295119
A67: 15.17308333 | B67: 0.69 | D67: =(B67+B69)/2 -> 0.685 | F67: 1.15 | G67: 0.2853169549 | H67: 0.9846904049 | I67: 1.27000736 | J67: 0.09353742147 | K67: 1.363544781 | L67: 0.1981242863 | M67: 1.561669068
A68: 15.42158333 | B68: 1.53 | C68: 1.65 | F68: 1.2 | G68: 0.1763355757 | H68: 0.9081995538 | I68: 1.084535129 | J68: 0.09989209825 | K68: 1.184427228 | L68: 0.1793352765 | M68: 1.363762504
A69: 15.67008333 | B69: 0.68 | D69: =(B69+B71)/2 -> 0.67 | F69: 1.25 | G69: -1.414948887e-15 | H69: 0.5071892615 | I69: 0.5071892615 | J69: 0.09641532077 | K69: 0.6036045823 | L69: 0.09877611789 | M69: 0.7023807002
A70: 15.91858333 | B70: 1.77 | C70: 1.63 | F70: 1.3 | G70: -0.1763355757 | H70: -0.07505077807 | I70: -0.2513863538 | J70: 0.08344927604 | K70: -0.1679370777 | L70: -0.01580543514 | M70: -0.1837425129
A71: 16.16708333 | B71: 0.66 | D71: =(B71+B73)/2 -> 0.69 | F71: 1.35 | G71: -0.2853169549 | H71: -0.6304735434 | I71: -0.9157904983 | J71: 0.06227009179 | K71: -0.8535204065 | L71: -0.1249429723 | M71: -0.9784633788
A72: =A71+0.24*24.85/24 -> 16.41558333 | B72: 1.49 | C72: =(B72+B74)/2 -> 1.63 | F72: 1.4 | G72: -0.2853169549 | H72: -0.9606144077 | I72: -1.245931363 | J72: 0.034962239 | K72: -1.210969124 | L72: -0.1910452175 | M72: -1.402014341
A73: 16.66408333 | B73: 0.72 | D73: =(B73+B75)/2 -> 0.66 | F73: 1.45 | G73: -0.1763355757 | H73: -0.9475068644 | I73: -1.12384244 | J73: 0.004213376775 | K73: -1.119629063 | L73: -0.1913439479 | M73: -1.310973011
A74: 16.91258333 | B74: 1.77 | C74: 1.645 | F74: 1.5 | G74: 1.911101485e-15 | H74: -0.5958345234 | I74: -0.5958345234 | J74: -0.02695016912 | K74: -0.6227846926 | L74: -0.1257362689 | M74: -0.7485209615
A75: 17.16108333 | B75: 0.6 | D75: =(B75+B77)/2 -> 0.655 | F75: 1.55 | G75: 0.1763355757 | H75: -0.03125755631 | I75: 0.1450780194 | J75: -0.05546125941 | K75: 0.08961675997 | L75: -0.01682005527 | M75: 0.0727967047
A76: 17.40958333 | B76: 1.52 | C76: 1.665 | F76: 1.6 | G76: 0.2853169549 | H76: 0.5444884151 | I76: 0.82980537 | J76: -0.0785138115 | K76: 0.7512915585 | L76: 0.09788964943 | M76: 0.8491812079
A77: 17.65808333 | B77: 0.71 | D77: =(B77+B79)/2 -> 0.61 | F77: 1.65 | G77: 0.2853169549 | H77: 0.9256768409 | I77: 1.210993796 | J77: -0.09383897613 | K77: 1.11715482 | L77: 0.1788822945 | M77: 1.296037114
A78: 17.90658333 | B78: 1.81 | C78: 1.715 | F78: 1.7 | G78: 0.1763355757 | H78: 0.976100811 | I78: 1.152436387 | J78: -0.09992843927 | K78: 1.052507947 | L78: 0.1982608156 | M78: 1.250768763
A79: 18.15508333 | B79: 0.51 | D79: =(B79+B81)/2 -> 0.58 | F79: 1.75 | G79: -2.940161135e-15 | H79: 0.6777427449 | I79: 0.6777427449 | J79: -0.09618287143 | K79: 0.5815598734 | L79: 0.1493504851 | M79: 0.7309103585
A80: 18.40358333 | B80: 1.62 | C80: 1.75 | F80: 1.8 | G80: -0.1763355757 | H80: 0.1372124647 | I80: -0.03912311102 | J80: -0.08297091419 | K80: -0.1220940252 | L80: 0.04899795159 | M80: -0.07309607362
A81: 18.65208333 | B81: 0.65 | D81: =(B81+B83)/2 -> 0.525 | F81: 1.85 | G81: -0.2853169549 | H81: -0.4523468116 | I81: -0.7376637665 | J81: -0.06159289815 | K81: -0.7992566646 | L81: -0.06823141071 | M81: -0.8674880753
A82: 18.90058333 | B82: 1.88 | C82: 1.81 | F82: 1.9 | G82: -0.2853169549 | H82: -0.8802727399 | I82: -1.165589695 | J82: -0.03415286348 | K82: -1.199742558 | L82: -0.1619591816 | M82: -1.36170174
A83: 19.14908333 | B83: 0.4 | D83: =(B83+B85)/2 -> 0.49 | F83: 1.95 | G83: -0.1763355757 | H83: -0.9936580847 | I83: -1.16999366 | J83: -0.003351478695 | K83: -1.173345139 | L83: -0.1999018167 | M83: -1.373246956
A84: 19.39758333 | B84: 1.74 | C84: 1.85 | F84: 2 | G84: 2.903406682e-15 | H84: -0.7519877978 | I84: -0.7519877978 | J84: 0.0277797611 | K84: -0.7242080367 | L84: -0.1689903746 | M84: -0.8931984113
A85: 19.64608333 | B85: 0.58 | D85: =(B85+B87)/2 -> 0.44 | F85: 2.05 | G85: 0.1763355757 | H85: -0.2416159256 | I85: -0.06528034993 | J85: 0.05617689624 | K85: -0.009103453684 | L85: -0.07987197625 | M85: -0.08897542994
A86: 19.89458333 | B86: 1.96 | C86: 1.915 | F86: 2.1 | G86: 0.2853169549 | H86: 0.3550905685 | I86: 0.6404075234 | J86: 0.07904505967 | K86: 0.7194525831 | L86: 0.03675748379 | M86: 0.7562100669
A87: 20.14308333 | B87: 0.3 | D87: =(B87+B89)/2 -> 0.405 | F87: 2.15 | G87: 0.2853169549 | H87: 0.8249154843 | I87: 1.110232439 | J87: 0.0941335498 | K87: 1.204365989 | L87: 0.1407262153 | M87: 1.345092204
A88: 20.39158333 | B88: 1.87 | C88: 1.95 | F88: 2.2 | G88: 0.1763355757 | H88: 0.9999801673 | I88: 1.176315743 | J88: 0.09995734628 | K88: 1.276273089 | L88: 0.1962232829 | M88: 1.472496372
A89: 20.64008333 | B89: 0.51 | D89: =(B89+B91)/2 -> 0.355 | F89: 2.25 | G89: 3.307900828e-16 | H89: 0.817730201 | I89: 0.817730201 | J89: 0.09594326674 | K89: 0.9136734678 | L89: 0.1841333055 | M89: 1.097806773
A90: 20.88858333 | B90: 2.03 | C90: 2.015 | F90: 2.3 | G90: -0.1763355757 | H90: 0.3432874598 | I90: 0.1669518841 | J90: 0.08248637986 | K90: 0.249438264 | L90: 0.1086205487 | M90: 0.3580588127
A91: 21.13708333 | B91: 0.2 | D91: =(B91+B93)/2 -> 0.325 | F91: 2.35 | G91: -0.2853169549 | H91: -0.2538193525 | I91: -0.5391363074 | J91: 0.06091112241 | K91: -0.4782251849 | L91: -0.004305413109 | M91: -0.482530598
A92: 21.38558333 | B92: 2 | C92: 2.04 | F92: 2.4 | G92: -0.2853169549 | H92: -0.7602309931 | I92: -1.045547948 | J92: 0.0333409472 | K92: -1.012207001 | L92: -0.1157484207 | M92: -1.127955421
A93: 21.63408333 | B93: 0.45 | D93: =(B93+B95)/2 -> 0.295 | F93: 2.45 | G93: -0.1763355757 | H93: -0.9949955756 | I93: -1.171331151 | J93: 0.002489331288 | K93: -1.16884182 | L93: -0.1873231028 | M93: -1.356164923
A94: 21.88258333 | B94: 2.08 | C94: 2.08 | F94: 2.5 | G94: -3.564986847e-15 | H94: -0.8742266118 | I94: -0.8742266118 | J94: -0.02860728646 | K94: -0.9028338983 | L94: -0.1943763133 | M94: -1.097210212
A95: 22.13108333 | B95: 0.14 | D95: =(B95+B97)/2 -> 0.285 | F95: 2.55 | G95: 0.1763355757 | H95: -0.4410774775 | I95: -0.2647419018 | J95: -0.05688835389 | K95: -0.3216302557 | L95: -0.1344786482 | M95: -0.4561089039
A96: 22.37958333 | B96: 2.08 | C96: 2.08 | F96: 2.6 | G96: 0.2853169549 | H96: 0.1496782267 | I96: 0.4349951816 | J96: -0.07957042742 | K96: 0.3554247542 | L96: -0.0282612278 | M96: 0.3271635264
A97: 22.62808333 | B97: 0.43 | D97: =(B97+B99)/2 -> 0.28 | F97: 2.65 | G97: 0.2853169549 | H97: 0.6869506471 | I97: 0.972267602 | J97: -0.09442112058 | K97: 0.8778464815 | L97: 0.0876904751 | M97: 0.9655369566
A98: 22.87658333 | B98: 2.08 | C98: 2.105 | F98: 2.7 | G98: 0.1763355757 | H98: 0.9787606699 | I98: 1.155096246 | J98: -0.09997881715 | K98: 1.055117428 | L98: 0.1734381166 | M98: 1.228555545
A99: 23.12508333 | B99: 0.13 | D99: =(B99+B101)/2 -> 0.285 | F99: 2.75 | G99: 7.864997716e-15 | H99: 0.920838231 | I99: 0.920838231 | J99: -0.09569652452 | K99: 0.8251417065 | L99: 0.199446824 | M99: 1.02458853
A100: 23.37358333 | B100: 2.13 | C100: 2.085 | F100: 2.8 | G100: -0.1763355757 | H100: 0.5338802769 | I100: 0.3575447012 | J100: -0.08199570911 | K100: 0.2755489921 | L100: 0.1567581716 | M100: 0.4323071637
A101: 23.62208333 | B101: 0.44 | D101: =(B101+B103)/2 -> 0.305 | F101: 2.85 | G101: -0.2853169549 | H101: -0.04384470446 | I101: -0.3291616593 | J101: -0.0602248153 | K101: -0.3893864746 | L101: 0.06007581657 | M101: -0.3293106581
A102: 23.87058333 | B102: 2.04 | C102: 2.075 | F102: 2.9 | G102: -0.2853169549 | H102: -0.6059030199 | I102: -0.8912199748 | J102: -0.03252655059 | K102: -0.9237465254 | L102: -0.05729902127 | M102: -0.9810455467
A103: 24.11908333 | B103: 0.17 | D103: =(B103+B105)/2 -> 0.32 | F103: 2.95 | G103: -0.1763355757 | H103: -0.9514590165 | I103: -1.127794592 | J103: -0.001626998692 | K103: -1.129421591 | L103: -0.1549378142 | M103: -1.284359405
A104: 24.36758333 | B104: 2.11 | C104: 2.035 | F104: 3 | G104: -1.109919448e-14 | H104: -0.9570380257 | I104: -0.9570380257 | J104: 0.02943268362 | K104: -0.9276053421 | L104: -0.1992099074 | M104: -1.12681525
A105: 24.61608333 | B105: 0.47 | D105: =(B105+B107)/2 -> 0.36 | F105: 3.05 | G105: 0.1763355757 | H105: -0.6206465462 | I105: -0.4443109705 | J105: 0.05759557943 | K105: -0.3867153911 | L105: -0.1748662444 | M105: -0.5615816354
A106: 24.86458333 | B106: 1.96 | C106: 2.005 | F106: 3.1 | G106: 0.2853169549 | H106: -0.06248456543 | I106: 0.2228323895 | J106: 0.08008987567 | K106: 0.3029222651 | L106: -0.09029174354 | M106: 0.2126305216
A107: 25.11308333 | B107: 0.25 | D107: =(B107+B109)/2 -> 0.39 | F107: 3.15 | G107: 0.2853169549 | H107: 0.5180045087 | I107: 0.8033214636 | J107: 0.09470166705 | K107: 0.8980231307 | L107: 0.02538279821 | M107: 0.9234059289
A108: 25.36158333 | B108: 2.05 | C108: 1.945 | F108: 3.2 | G108: =$J$41*SIN($J$40*F108+$J$42) -> 0.1763355757 | H108: 0.9133993126 | I108: 1.089734888 | J108: =$M$41*SIN($M$40*F108+$M$42) -> 0.09999285026 | K108: =I108+J108 -> 1.189727739 | L108: =$P$41*SIN($P$40*F108+$P$42) -> 0.1323145022 | M108: 1.322042241
A109: 25.61008333 | B109: 0.53 | D109: =(B109+B111)/2 -> 0.45 | F109: =F108+$G$38 -> 3.25 | G109: 1.433339124e-14 | H109: =$G$41*SIN($G$40*F109+$G$42) -> 0.9824166885 | I109: =G109+H109 -> 0.9824166885 | J109: 0.09544266312 | K109: 1.077859352 | L109: 0.1936718683 | M109: 1.27153122
A110: 25.85858333 | B110: 1.84 | C110: 1.895 | F110: 3.3 | G110: -0.1763355757 | H110: 0.7003952279 | I110: 0.5240596523 | J110: 0.08149893842 | K110: 0.6055585907 | L110: 0.1883209973 | M110: =I110+L110+J110 -> 0.793879588
A111: 26.10708333 | B111: 0.37 | D111: =(B111+B113)/2 -> 0.48 | F111: 3.35 | G111: -0.2853169549 | H111: 0.1681073287 | I111: -0.1172096262 | J111: 0.05953402787 | K111: -0.05767559834 | L111: 0.1181049406 | M111: 0.06042934224
A112: 26.35558333 | B112: 1.95 | C112: 1.825 | F112: 3.4 | G112: -0.2853169549 | H112: -0.4242489731 | I112: -0.709565928 | J112: 0.03170973422 | K112: -0.6778561938 | L112: 0.007208879849 | M112: -0.6706473139
A113: 26.60408333 | B113: 0.59 | D113: =(B113+B115)/2 -> 0.55 | F113: 3.45 | G113: -0.1763355757 | H113: -0.8650118953 | I113: -1.041347471 | J113: 0.0007645450578 | K113: -1.040582926 | L113: -0.1061702037 | M113: -1.14675313
A114: 26.85258333 | B114: 1.7 | C114: 1.765 | F114: 3.5 | G114: -1.756758801e-14 | H114: -0.9966872656 | I114: -0.9966872656 | J114: -0.0302558912 | K114: -1.026943157 | L114: -0.1829800778 | M114: -1.209923235
A115: 27.10108333 | B115: 0.51 | D115: =(B115+B117)/2 -> 0.585 | F115: 3.55 | G115: 0.1763355757 | H115: -0.7722246119 | I115: -0.5958890362 | J115: -0.05829852024 | K115: -0.6541875565 | L115: -0.1967643896 | M115: -0.8509519461
A116: 27.34958333 | B116: 1.83 | C116: 1.695 | F116: 3.6 | G116: 0.2853169549 | H116: -0.2718293194 | I116: 0.01348763547 | J116: -0.08060336577 | K116: -0.0671157303 | L116: -0.142775278 | M116: -0.2098910083
A117: 27.59808333 | B117: 0.66 | D117: =(B117+B119)/2 -> 0.665 | F117: 3.65 | G117: 0.2853169549 | H117: 0.3256964974 | I117: 0.6110134522 | J117: -0.09497516836 | K117: 0.5160382839 | L117: -0.03960872429 | M117: 0.4764295596
A118: 27.84658333 | B118: 1.56 | C118: 1.635 | F118: 3.7 | G118: 0.1763355757 | H118: 0.8068438763 | I118: 0.983179452 | J118: -0.09999944458 | K118: 0.8831800074 | L118: 0.07720063768 | M118: 0.9603806451
A119: 28.09508333 | B119: 0.67 | D119: =(B119+B121)/2 -> 0.695 | F119: 3.75 | G119: 2.080178477e-14 | H119: 0.9996884008 | I119: 0.9996884008 | J119: -0.09518170143 | K119: 0.9045066994 | L119: 0.1674190524 | M119: 1.071925752
A120: 28.34358333 | B120: 1.71 | C120: 1.575 | F120: 3.8 | G120: -0.1763355757 | H120: 0.8353225305 | I120: 0.6589869548 | J120: -0.08099610476 | K120: 0.5779908501 | L120: 0.1999717363 | M120: 0.7779625863
A121: 28.59208333 | B121: 0.72 | D121: =(B121+B123)/2 -> 0.77 | F121: 3.85 | G121: -0.2853169549 | H121: 0.3724777636 | I121: 0.08716080873 | J121: -0.05883881151 | K121: 0.02832199723 | L121: 0.1636462599 | M121: 0.1919682571
A122: 28.84058333 | B122: 1.44 | C122: 1.525 | F122: 3.9 | G122: -0.2853169549 | H122: -0.2234614044 | I122: -0.5087783593 | J122: -0.03089055886 | K122: -0.5396689181 | L122: 0.07095455136 | M122: -0.4687143668
A123: 29.08908333 | B123: 0.82 | D123: =(B123+B125)/2 -> 0.785 | F123: 3.95 | G123: -0.1763355757 | H123: -0.7395529554 | I123: -0.9158885311 | J123: 9.796545326e-05 | K123: -0.9157905657 | L123: -0.04617670573 | M123: -0.9619672714
A124: 29.33758333 | B124: 1.61 | C124: 1.5 | F124: 4 | G124: -2.403598154e-14 | H124: -0.9913861607 | I124: -0.9913861607 | J124: 0.03107684794 | K124: -0.9603093128 | L124: -0.1474028825 | M124: -1.107712195
A125: 29.58608333 | B125: 0.75 | D125: =(B125+B127)/2 -> 0.83 | F125: 4.05 | G125: 0.1763355757 | H125: -0.888975542 | I125: -0.7126399664 | J125: 0.05899712404 | K125: -0.6536428423 | L125: -0.1978576874 | M125: -0.8515005298
A126: 29.83458333 | B126: 1.39 | C126: 1.475 | F126: 4.1 | G126: 0.2853169549 | H126: -0.4689146395 | I126: -0.1835976847 | J126: 0.08111085952 | K126: -0.1024868251 | L126: -0.180162494 | M126: -0.2826493192
A127: 30.08308333 | B127: 0.91 | D127: =(B127+B129)/2 -> 0.815 | F127: 4.15 | G127: 0.2853169549 | H127: 0.118699656 | I127: 0.4040166108 | J127: 0.09524160416 | K127: 0.499258215 | L127: -0.1004122254 | M127: 0.3988459896
A128: 30.33158333 | B128: 1.56 | F128: 4.2 | G128: 0.1763355757 | H128: 0.6638999843 | I128: 0.84023556 | J128: 0.09999859961 | K128: 0.9402341596 | L128: 0.01392397757 | M128: 0.9541581372
A129: 30.58008333 | B129: 0.72 | F129: 4.25 | G129: 2.72701783e-14 | H129: 0.9718744178 | I129: 0.9718744178 | J129: 0.09491365886 | K129: 1.066788077 | L129: 0.123464213 | M129: 1.19025229
F130: 4.3 | G130: -0.1763355757 | H130: 0.9325769973 | I130: 0.7562414216 | J130: 0.08048724554 | K130: 0.8367286671 | L130: 0.1904784995 | M130: 1.027207167
F131: 4.35 | G131: -0.2853169549 | H131: 0.5600495452 | I131: 0.2747325903 | J131: 0.05813921793 | K131: 0.3328718082 | L131: 0.1918844713 | M131: 0.5247562795
F132: 4.4 | G132: -0.2853169549 | H132: -0.01259578257 | I132: -0.2979127375 | J132: 0.03006908545 | K132: -0.267843652 | L132: 0.1271978561 | M132: -0.1406457959
F133: 4.45 | G133: -0.1763355757 | H133: -0.5807403634 | I133: -0.7570759391 | J133: -0.0009604686764 | K133: -0.7580364078 | L133: 0.01869927791 | M133: -0.7393371299
F134: 4.5 | G134: -3.050437507e-14 | H134: -0.9413737895 | I134: -0.9413737895 | J134: -0.03189549277 | K134: -0.9732692823 | L134: -0.0962400698 | M134: -1.069509352
F135: 4.55 | G135: 0.1763355757 | H135: -0.965633899 | I135: -0.7892983233 | J135: -0.05969133885 | K135: -0.8489896622 | L135: -0.1780305382 | M135: -1.0270202
F136: 4.6 | G136: 0.2853169549 | H136: -0.6448520275 | I136: -0.3595350726 | J136: -0.08161231917 | K136: -0.4411473917 | L136: -0.1985002611 | M136: -0.6396476529
F137: 4.65 | G137: 0.2853169549 | H137: -0.09365051004 | I137: 0.1916664448 | J137: -0.09550095462 | K137: 0.09616549022 | L137: -0.150598658 | M137: -0.05443316774
F138: 4.7 | G138: 0.1763355757 | H138: 0.4910143702 | I138: 0.6673499459 | J138: -0.09999031542 | K138: 0.5673596305 | L138: -0.0508249318 | M138: 0.5165346987
F139: 4.75 | G139: 3.373857183e-14 | H139: 0.9002291433 | I139: 0.9002291433 | J139: -0.09463855535 | K139: 0.805590588 | L139: 0.06645490729 | M139: 0.8720454953
F140: 4.8 | G140: -0.1763355757 | H140: 0.9877724762 | I140: 0.8114369006 | J140: -0.07997239861 | K140: 0.7314645019 | L140: 0.1608450529 | M140: 0.8923095548
F141: 4.85 | G141: -0.2853169549 | H141: 0.7223632333 | I141: 0.4370462784 | J141: -0.05743529919 | K141: 0.3796109792 | L141: 0.1998338126 | M141: 0.5794447918
F142: 4.9 | G142: -0.2853169549 | H142: 0.1988379058 | I142: -0.08647904904 | J142: -0.02924537511 | K142: -0.1157244241 | L142: 0.1699919184 | M142: 0.05426749424
F143: 4.95 | G143: -0.1763355757 | H143: -0.3957365273 | I143: -0.572072103 | J143: 0.001822900447 | K143: -0.5702492025 | L143: 0.08159809675 | M143: -0.4886511058
F144: 5 | G144: -3.69727686e-14 | H144: -0.8489056975 | I144: -0.8489056975 | J144: 0.03271176479 | K144: -0.8161939327 | L144: -0.03490133065 | M144: -0.8510952634
F145: 5.05 | G145: 0.1763355757 | H145: -0.9987424103 | I145: -0.8224068346 | J145: 0.06038111302 | K145: -0.7620257216 | L145: -0.139379362 | M145: -0.9014050836
F146: 5.1 | G146: 0.2853169549 | H146: -0.7917067513 | I146: -0.5063897964 | J146: 0.08210770741 | K146: -0.424282089 | L146: -0.1958496388 | M146: -0.6201317278
F147: 5.15 | G147: 0.2853169549 | H147: -0.3017770616 | I147: -0.01646010673 | J147: 0.09575320046 | K147: 0.07929309373 | L147: -0.1848615684 | M147: -0.1055684747
F148: 5.2 | G148: 0.1763355757 | H148: 0.2959841316 | I148: 0.4723197073 | J148: 0.09997459263 | K148: 0.5722942999 | L148: -0.1101998761 | M148: 0.4620944238
F149: 5.25 | G149: 4.233859357e-14 | H149: 0.7879837611 | I149: 0.7879837611 | J149: 0.09435641138 | K149: 0.8823401725 | L149: 0.00241900385 | M149: 0.8847591763
F150: 5.3 | G150: -0.1763355757 | H150: 0.9984196652 | I150: 0.8220840895 | J150: 0.07945160227 | K150: 0.9015356918 | L150: 0.1142046834 | M150: 1.015740375
F151: 5.35 | G151: -0.2853169549 | H151: 0.8520985214 | I151: 0.5667815665 | J151: 0.05672710765 | K151: 0.6235086742 | L151: 0.1866537616 | M151: 0.8101624357
F152: 5.4 | G152: -0.2853169549 | H152: 0.4013040548 | I152: 0.1159870999 | J152: 0.0284194891 | K152: 0.144406589 | L152: 0.1948119157 | M152: 0.3392185047
F153: 5.45 | G153: -0.1763355757 | H153: -0.1928850733 | I153: -0.369220649 | J153: -0.002685196606 | K153: -0.3719058456 | L153: 0.1358691555 | M153: -0.2360366901
F154: 5.5 | G154: -4.557279033e-14 | H154: -0.7181521722 | I154: -0.7181521722 | J154: -0.03352560327 | K154: -0.7516777755 | L154: 0.03012769443 | M154: -0.7215500811
F155: 5.55 | G155: 0.1763355757 | H155: -0.9868078903 | I155: -0.8104723146 | J155: -0.06106639525 | K155: -0.8715387098 | L155: -0.08599093394 | M155: -0.9575296438
F156: 5.6 | G156: 0.2853169549 | H156: -0.9028557 | I156: -0.6175387451 | J156: -0.0825969874 | K156: -0.7001357325 | L156: -0.17249089 | M156: -0.8726266225
F157: 5.65 | G157: 0.2853169549 | H157: -0.4962935437 | I157: -0.2109765888 | J157: -0.0959983229 | K157: -0.3069749117 | L157: -0.1995781741 | M157: -0.5065530858
F158: 5.7 | G158: 0.1763355757 | H158: 0.08760508315 | I158: 0.2639406588 | J158: -0.09995143239 | K158: 0.1639892264 | L158: -0.1579228563 | M158: 0.006066370092
F159: 5.75 | G159: 4.88069871e-14 | H159: 0.6402005096 | I159: 0.6402005096 | J159: -0.09406724792 | K159: 0.5461332617 | L159: -0.06187267253 | M159: 0.4842605891
F160: 5.8 | G160: -0.1763355757 | H160: 0.9640383786 | I160: 0.7877028029 | J160: -0.07892489527 | K160: 0.7087779077 | L160: 0.05548890225 | M160: 0.7642668099
F161: 5.85 | G161: -0.2853169549 | H161: 0.9434043807 | I161: 0.6580874258 | J161: -0.05601469599 | K161: 0.6020727298 | L161: 0.1537379086 | M161: 0.7558106384
F162: 5.9 | G162: -0.2853169549 | H162: 0.5856714919 | I162: 0.300354537 | J162: -0.02759148888 | K162: 0.2727630481 | L162: 0.1990335101 | M162: 0.4717965582
F163: 5.95 | G163: -0.1763355757 | H163: 0.01866544884 | I163: -0.1576701269 | J163: 0.003547293005 | K163: -0.1541228338 | L163: 0.1757741135 | M163: 0.02165127961
F164: 6 | G164: -5.204118386e-14 | H164: -0.5550101648 | I164: -0.5550101648 | J164: 0.03433694768 | K164: -0.5206732171 | L164: 0.09197117315 | M164: -0.4287020439
F165: 6.05 | G165: 0.1763355757 | H165: -0.9303685828 | I165: -0.7540330071 | J165: 0.06174713455 | K165: -0.6922858726 | L165: -0.02351026993 | M165: -0.7157961425
F166: 6.1 | G166: 0.2853169549 | H166: -0.9732860839 | I166: -0.687969129 | J166: 0.08308012272 | K166: -0.6048890063 | L166: -0.1308938479 | M166: -0.7357828542
F167: 6.15 | G167: 0.2853169549 | H167: -0.6684273119 | I167: -0.383110357 | J167: 0.09623630371 | K167: -0.2868740533 | L167: -0.1931924174 | M167: -0.4800664707
F168: 6.2 | G168: 0.1763355757 | H168: -0.1247249325 | I168: 0.05161064321 | J168: 0.09992083645 | K168: 0.1515314797 | L168: -0.1889478917 | M168: -0.03741641204
F169: 6.25 | G169: 5.527538063e-14 | H169: 0.4635443763 | I169: 0.4635443763 | J169: 0.09377108649 | K169: 0.5573154628 | L169: -0.119622253 | M169: 0.4376932098
F170: 6.3 | G170: -0.1763355757 | H170: 0.8861792039 | I170: 0.7098436282 | J170: 0.07839231678 | K170: 0.788235945 | L170: -0.009093988022 | M170: 0.7791419569
F171: 6.35 | G171: -0.2853169549 | H171: 0.99216294 | I171: 0.7068459851 | J171: 0.05529811722 | K171: 0.7621441023 | L171: 0.1045666054 | M171: 0.8667107077
F172: 6.4 | G172: =$J$41*SIN($J$40*F172+$J$42) -> -0.2853169549 | H172: 0.7436252921 | I172: 0.4583083372 | J172: =$M$41*SIN($M$40*F172+$M$42) -> 0.02676143603 | K172: =I172+J172 -> 0.4850697732 | L172: =$P$41*SIN($P$40*F172+$P$42) -> 0.182210332 | M172: 0.6672801052
F173: =F172+$G$38 -> 6.45 | G173: -0.1763355757 | H173: =$G$41*SIN($G$40*F173+$G$42) -> 0.229374164 | I173: =G173+H173 -> 0.05303858828 | J173: -0.004409125509 | K173: 0.04862946277 | L173: 0.1970936271 | M173: 0.2457230899
F174: 6.5 | G174: -5.850957739e-14 | H174: -0.3668373386 | I174: -0.3668373386 | J174: -0.03514573765 | K174: -0.4019830763 | L174: 0.1440900964 | M174: =I174+L174+J174 -> -0.2578929799
F175: 6.55 | G175: 0.1763355757 | H175: -0.8319698865 | I175: -0.6556343109 | J175: -0.06242328028 | K175: -0.7180575911 | L175: 0.04145624824 | M175: -0.6766013429
F176: 6.6 | G176: 0.2853169549 | H176: -0.9998215104 | I176: -0.7145045555 | J176: -0.08355707744 | K176: -0.798061633 | L176: -0.07545676836 | M176: -0.8735184013
F177: 6.65 | G177: 0.2853169549 | H177: -0.8104151766 | I177: -0.5250982217 | J177: -0.09646712519 | K177: -0.6215653469 | L177: -0.1663794951 | M177: -0.787944842
F178: 6.7 | G178: 0.1763355757 | H178: -0.3314298851 | I178: -0.1550943094 | J178: -0.09988280707 | K178: -0.2549771164 | L178: -0.1999945556 | M178: -0.4549716721
F179: 6.75 | G179: 6.174377416e-14 | H179: 0.2659825083 | I179: 0.2659825083 | J179: -0.09346794913 | K179: 0.1725145592 | L179: -0.164723596 | M179: 0.007790963207
F180: 6.8 | G180: -0.1763355757 | H180: 0.7683535701 | I180: 0.5920179944 | J180: -0.07785390644 | K180: 0.514164088 | L180: -0.07271532711 | M180: 0.4414487609
F181: 6.85 | G181: -0.2853169549 | H181: 0.9961752004 | I181: 0.7108582456 | J181: -0.05457742465 | K181: 0.6562808209 | L181: 0.04433897102 | M181: 0.7006197919
F182: 6.9 | G182: -0.2853169549 | H182: 0.8680417789 | I182: 0.582724824 | J182: -0.02592939231 | K182: 0.5567954317 | L182: 0.1461211772 | M182: 0.7029166088
F183: 6.95 | G183: -0.1763355757 | H183: 0.4297381621 | I183: 0.2534025864 | J183: 0.005270630004 | K183: 0.2586732164 | L183: 0.1975734815 | M183: 0.4562466978
F184: 7 | G184: -6.497797092e-14 | H184: -0.1621202408 | I184: -0.1621202408 | J184: 0.03595191301 | K184: -0.1261683278 | L184: 0.1809736792 | M184: 0.05480535135
F185: 7.05 | G185: 0.1763355757 | H185: -0.6960495578 | I185: -0.5197139821 | J185: 0.06309478213 | K185: -0.4566192 | L185: 0.1020393975 | M185: -0.3545798026
F186: 7.1 | G186: 0.2853169549 | H186: -0.9812652386 | I186: -0.6959482837 | J186: 0.08402781608 | K186: -0.6119204676 | L186: -0.01204128094 | M186: -0.6239617485
F187: 7.15 | G187: 0.2853169549 | H187: -0.9158535209 | I187: -0.630536566 | J187: 0.09669077017 | K187: -0.5338457958 | L187: -0.1219744668 | M187: -0.6558202626
F188: 7.2 | G188: 0.1763355757 | H188: -0.5231874333 | I188: -0.3468518576 | J188: 0.09983734708 | K188: -0.2470145105 | L188: -0.1898948311 | M188: -0.4369093416
F189: 7.25 | G189: 6.821216769e-14 | H189: 0.0564248962 | I189: 0.0564248962 | J189: 0.09315785838 | K189: 0.1495827546 | L189: -0.1924079192 | M189: -0.04282516458
F190: 7.3 | G190: -0.1763355757 | H190: 0.6158753838 | I190: 0.4395398081 | J190: 0.07730970429 | K190: 0.5168495124 | L190: -0.1286481241 | M190: 0.3882013883
F191: 7.35 | G191: -0.2853169549 | H191: 0.9552602102 | I191: 0.6699432553 | J191: 0.05385267187 | K191: 0.7237959271 | L191: -0.02057683652 | M191: 0.7032190906
F192: 7.4 | G192: -0.2853169549 | H192: 0.9533098 | I192: 0.6679928451 | J192: 0.02509541963 | K192: 0.6930882647 | L192: 0.0945819259 | M192: 0.7876701906
F193: 7.45 | G193: -0.1763355757 | H193: 0.6107210772 | I193: 0.4343855015 | J193: -0.006131742399 | K193: 0.4282537591 | L193: 0.1771629392 | M193: 0.6054166984
F194: 7.5 | G194: -7.144636445e-14 | H194: 0.049908439 | I194: 0.049908439 | J194: -0.0367554138 | K194: 0.0131530252 | L194: 0.1987220424 | M194: 0.2118750676
F195: 7.55 | G195: 0.1763355757 | H195: -0.5287375693 | I195: -0.3524019936 | J195: -0.06376159016 | K195: -0.4161635838 | L195: 0.1518334293 | M195: -0.2643301545
F196: 7.6 | G196: 0.2853169549 | H196: -0.9184541515 | I196: -0.6331371966 | J196: -0.08449230362 | K196: -0.7176295002 | L196: 0.05264738917 | M196: -0.664982111
F197: 7.65 | G197: 0.2853169549 | H197: -0.9799871019 | I197: -0.694670147 | J197: -0.096907222 | K197: -0.791577369 | L197: -0.06467249014 | M197: -0.8562498592
F198: 7.7 | G198: 0.1763355757 | H198: -0.6913493599 | I198: -0.5150137842 | J198: -0.09978445986 | K198: -0.6147982441 | L198: -0.1597166108 | M198: -0.7745148549
F199: 7.75 | G199: 7.468056121e-14 | H199: -0.1556774645 | I199: -0.1556774645 | J199: -0.09284083731 | K199: -0.2485183018 | L199: -0.1997480255 | M199: -0.4482663274
F200: 7.8 | G200: -0.1763355757 | H200: 0.4356213727 | I200: 0.259285797 | J200: -0.07675975082 | K200: 0.1825260462 | L200: -0.1709783349 | M200: 0.01154771136
F201: 7.85 | G201: -0.2853169549 | H201: 0.8712632249 | I201: 0.58594627 | J201: -0.05312391283 | K201: 0.5328223572 | L201: -0.08331695595 | M201: 0.4495054012
... 1150 more rows
